bitfinex/quotes_SOLUSD_20240813
["timestamp","ask_amount","ask_price","bid_price","bid_amount"]
[1723565788597,13.89036468,147.32,147.24,12.42]
[1723565788964,6.7884,147.31,147.24,12.42]
[1723565789187,13.90140046,147.3,147.22,16.5908]
[1723565789394,6.7915,147.25,147.22,16.5908]
[1723565789697,6.7908,147.26,147.22,16.5908]
[1723565789880,1.48140046,147.26,147.22,16.5908]
[1723565790077,19.2099,147.28,147.22,16.5908]
[1723565790475,12.42,147.28,147.22,16.5908]
[1723565790682,6.7896,147.29,147.23,45.0]
[1723565790895,8.27100046,147.29,147.23,45.0]
[1723565791069,6.7896,147.29,147.23,45.0]
[1723565791772,6.791,147.26,147.23,45.0]
[1723565791972,1.48140046,147.29,147.22,16.5908]
[1723565792198,1.48140046,147.28,147.22,16.5908]
[1723565792869,6.7908,147.26,147.22,16.5908]
[1723565793092,6.7903,147.27,147.22,16.5908]
[1723565793598,6.7903,147.27,147.2,6.639]
[1723565793599,6.7917,147.24,147.2,6.639]
[1723565793783,6.7921,147.23,147.2,6.639]
[1723565794170,6.7916,147.24,147.2,6.639]
[1723565794521,6.7936,147.2,147.16,6.3271]
[1723565794793,6.7944,147.18,147.14,16.3011]
[1723565794995,31.05,147.19,147.1,15.773]
[1723565795200,6.7954,147.16,147.1,15.773]
[1723565795614,1.48140046,147.15,147.1,15.773]
[1723565795821,1.48140046,147.14,147.1,15.773]
[1723565796102,8.27680046,147.16,147.1,15.773]
[1723565796472,31.05,147.19,147.1,15.773]
[1723565796473,6.794,147.19,147.1,15.773]
[1723565796678,1.48140046,147.2,147.1,15.773]
[1723565796874,21.48140046,147.2,147.1,15.773]
[1723565797181,20.0,147.2,147.11,0.12549]
[1723565797378,6.7933,147.21,147.11,45.37647]
[1723565797698,31.17549,147.25,147.12,31.05]
[1723565797898,6.7925,147.23,147.13,45.12549]
[1723565798095,31.17549,147.25,147.14,6.1977]
[1723565798096,6.7933,147.21,147.14,6.1977]
[1723565798291,6.7942,147.19,147.14,6.1977]
[1723565798617,31.05,147.23,147.14,6.1977]
[1723565798618,6.7935,147.2,147.14,6.1977]
[1723565798897,7.10755014,147.21,147.14,6.1977]
[1723565799121,7.10755014,147.21,147.11,6.0771]
[1723565799122,6.795,147.17,147.11,6.0771]
[1723565799280,6.7965,147.14,147.1,15.773]
[1723565799671,6.7954,147.16,147.1,15.773]
[1723565800181,6.7949,147.17,147.1,15.773]
[1723565800385,6.7954,147.16,147.1,15.773]
[1723565801392,6.795,147.17,147.1,15.773]
[1723565801696,68.0355,147.19,147.1,15.773]
[1723565801877,6.7965,147.14,147.1,15.773]
[1723565802207,20.0,147.2,147.1,46.823]
[1723565802398,7.10755014,147.21,147.12,31.05]
[1723565803195,7.10755014,147.21,147.13,45.37647]
[1723565803818,6.7908,147.26,147.16,6.4556]
[1723565804142,7.10495522,147.26,147.18,31.05]
[1723565804297,6.7901,147.28,147.19,45.37647]
[1723565804727,6.7902,147.27,147.19,45.37647]
[1723565804930,6.7899,147.28,147.19,45.37647]
[1723565805124,7.10358459,147.3,147.2,6.4556]
[1723565805333,24.71030046,147.34,147.21,45.25098]
[1723565805536,37.311,147.34,147.21,45.25098]
[1723565805702,31.05,147.32,147.21,45.25098]
[1723565805902,1.48140046,147.31,147.21,45.25098]
[1723565806123,1.48140046,147.31,147.21,45.12549]
[1723565806306,7.10223694,147.33,147.22,15.20599]
[1723565806530,13.88973694,147.33,147.23,45.12549]
[1723565806702,6.7875,147.33,147.23,45.12549]
[1723565807132,7.10070601,147.34,147.23,45.12549]
[1723565807326,1.48140046,147.33,147.25,6.5802]
[1723565807635,1.48140046,147.33,147.26,45.25098]
[1723565807865,1.48140046,147.33,147.26,45.37647]
[1723565808201,1.18367146,147.35,147.26,45.0]
[1723565808202,38.8,147.34,147.26,45.0]
[1723565808404,6.7875,147.33,147.26,45.0]
[1723565808612,45.587,147.34,147.26,45.0]
[1723565808822,6.7876,147.33,147.25,6.5802]
[1723565809011,45.587,147.34,147.25,6.5802]
[1723565809402,38.8,147.34,147.25,6.5802]
[1723565809737,1.60689046,147.33,147.25,6.5802]
[1723565809909,38.8,147.3,147.25,6.5802]
[1723565810108,45.5889,147.3,147.25,6.5802]
[1723565810447,6.7898,147.28,147.25,6.5802]
[1723565810604,38.8,147.3,147.25,6.5802]
[1723565811312,40.28140046,147.32,147.25,6.5802]
[1723565811507,1.48140046,147.31,147.25,6.5802]
[1723565812211,38.8,147.32,147.26,45.0]
[1723565812526,1.48140046,147.31,147.25,6.5802]
[1723565813115,38.8,147.3,147.25,6.5802]
[1723565813312,45.5888,147.3,147.25,6.5802]
[1723565813514,38.8,147.3,147.25,6.5802]
[1723565813811,38.8,147.32,147.25,6.5802]
[1723565814245,38.8,147.34,147.25,6.5802]
[1723565814422,21.48140046,147.33,147.25,6.5802]
[1723565814626,1.48140046,147.32,147.25,6.5802]
[1723565814841,1.48140046,147.32,147.26,45.12549]
[1723565815042,40.28140046,147.32,147.25,6.5802]
[1723565815246,38.8,147.3,147.25,6.5802]
[1723565815715,1.48140046,147.29,147.25,6.5802]
[1723565815921,6.7898,147.28,147.22,15.0805]
[1723565816146,1.48140046,147.27,147.23,45.0]
[1723565816350,38.8,147.3,147.23,45.0]
[1723565816545,0.12549,147.34,147.23,45.0]
[1723565816744,0.12549,147.32,147.23,45.0]
[1723565816950,38.8,147.31,147.23,45.0]
[1723565817554,45.5886,147.31,147.23,45.0]
[1723565817872,45.5884,147.31,147.22,15.0805]
[1723565818417,1.48140046,147.34,147.24,38.8]
[1723565818653,38.8,147.38,147.25,20.0]
[1723565818827,38.8,147.35,147.23,6.003]
[1723565819032,6.7871,147.34,147.24,45.37647]
[1723565819254,21.18341535,147.38,147.24,45.37647]
[1723565819437,45.5871,147.34,147.24,45.37647]
[1723565819638,38.8,147.34,147.24,45.37647]
[1723565819838,1.48140046,147.33,147.24,45.37647]
[1723565820064,38.8,147.34,147.24,45.12549]
[1723565820272,38.8,147.31,147.24,45.12549]
[1723565820571,0.8207651,147.37,147.23,6.003]
[1723565820780,38.8,147.34,147.23,6.003]
[1723565821277,45.587,147.34,147.23,6.003]
[1723565821856,45.587,147.34,147.24,45.12549]
[1723565822071,1.48140046,147.33,147.24,45.12549]
[1723565822239,1.48140046,147.32,147.25,0.12549]
[1723565822749,1.48140046,147.33,147.25,0.12549]
[1723565823269,0.8207651,147.37,147.25,0.12549]
[1723565823452,1.48140046,147.36,147.25,0.25098]
[1723565823651,1.48140046,147.35,147.26,0.12549]
[1723565823834,39.6207651,147.37,147.27,6.6487]
[1723565824147,38.8,147.34,147.29,16.1468]
[1723565824352,1.48140046,147.33,147.29,16.1468]
[1723565824670,38.8,147.34,147.3,45.0]
[1723565824967,7.6067651,147.37,147.3,45.0]
[1723565824968,38.8,147.36,147.3,45.0]
[1723565826047,7.6067651,147.37,147.3,45.0]
[1723565826274,38.8,147.33,147.27,6.6487]
[1723565827172,1.48140046,147.34,147.27,6.6487]
[1723565827340,38.8,147.35,147.27,6.6487]
[1723565827541,40.28140046,147.35,147.28,45.12549]
[1723565827744,38.8,147.35,147.28,45.12549]
[1723565828261,0.8207651,147.37,147.29,22.9755]
[1723565828464,39.6207651,147.37,147.3,45.0]
[1723565828667,38.8,147.35,147.3,45.0]
[1723565829175,2.30216556,147.37,147.3,45.0]
[1723565829380,46.4063651,147.37,147.3,45.0]
[1723565829552,38.8,147.35,147.3,45.0]
[1723565830244,0.8207651,147.37,147.3,45.0]
[1723565830441,39.6207651,147.37,147.3,45.0]
[1723565831545,38.8,147.34,147.3,45.0]
[1723565832286,38.8,147.32,147.29,22.9755]
[1723565832443,38.8,147.3,147.29,22.9755]
[1723565833451,38.8,147.3,147.18,258.9]
[1723565833452,38.8,147.3,147.25,21.5313]
[1723565833692,38.8,147.26,147.25,21.5313]
[1723565834261,38.8,147.28,147.25,21.5313]
[1723565834661,38.8,147.3,147.25,21.5313]
[1723565835090,38.8,147.3,147.26,45.12549]
[1723565835890,38.8,147.32,147.26,45.12549]
[1723565836385,38.8,147.3,147.26,45.12549]
[1723565836764,38.8,147.32,147.27,0.12549]
[1723565837780,38.8,147.32,147.26,45.12549]
[1723565838204,38.8,147.32,147.27,0.25098]
[1723565838370,38.8,147.32,147.28,0.12549]
[1723565838570,38.8,147.32,147.27,0.12549]
[1723565839302,38.8,147.3,147.26,45.12549]
[1723565839884,38.8,147.32,147.26,45.12549]
[1723565840163,38.8,147.32,147.27,0.25098]
[1723565840468,38.8,147.32,147.28,0.12549]
[1723565841164,38.8,147.3,147.26,45.0]
[1723565841374,38.8,147.3,147.27,0.12549]
[1723565841578,38.8,147.3,147.26,0.12549]
[1723565841990,38.8,147.3,147.25,21.5313]
[1723565842191,38.8,147.28,147.25,21.5313]
[1723565844073,38.8,147.28,147.26,45.12549]
[1723565844275,77.6,147.28,147.21,21.5705]
[1723565844488,38.8,147.24,147.21,21.5705]
[1723565845000,38.8,147.26,147.21,21.5705]
[1723565845197,38.8,147.24,147.21,21.5705]
[1723565845433,38.8,147.22,147.16,21.5705]
[1723565845581,38.8,147.2,147.16,21.5705]
[1723565845790,38.8,147.22,147.16,21.5705]
[1723565847107,38.8,147.2,147.16,21.5705]
[1723565847407,38.8,147.18,147.08,22.3462]
[1723565847577,38.8,147.18,147.09,8.16434681]
[1723565847772,38.8,147.18,147.08,22.3462]
[1723565848016,38.8,147.16,147.08,22.3462]
[1723565849288,38.8,147.18,147.08,22.3462]
[1723565850021,38.8,147.18,147.09,0.5249694]
[1723565850220,38.8,147.18,147.1,0.12549]
[1723565850787,38.8,147.16,147.1,0.12549]
[1723565850986,38.8,147.14,147.08,22.3462]
[1723565851219,38.8,147.12,147.08,22.3462]
[1723565851409,38.8,147.21,147.08,22.3462]
[1723565851410,38.8,147.1,147.08,22.3462]
[1723565851593,38.8,147.15,147.08,22.3462]
[1723565852016,38.8,147.1,147.08,22.3462]
[1723565852218,38.8,147.1,147.08,6.6245]
[1723565852388,38.8,147.1,147.04,22.221]
[1723565852725,38.8,147.16,147.04,22.221]
[1723565853295,38.8,147.16,147.05,1.35910006]
[1723565853596,38.8,147.16,147.07,6.3055]
[1723565853797,38.8,147.21,147.1,0.12549]
[1723565854009,38.8,147.21,147.12,0.12549]
[1723565854195,38.8,147.28,147.12,21.86033149]
[1723565854196,38.8,147.23,147.12,21.86033149]
[1723565854403,38.8,147.23,147.13,21.4235]
[1723565854628,38.8,147.25,147.16,0.12549]
[1723565854799,38.8,147.23,147.16,65.50196]
[1723565855592,38.8,147.25,147.16,65.50196]
[1723565855993,38.8,147.28,147.18,0.12549]
[1723565856206,38.8,147.28,147.18,65.37647]
[1723565856414,38.8,147.28,147.18,65.50196]
[1723565857811,1.48140046,147.34,147.2,0.12549]
[1723565858018,38.8,147.3,147.2,65.50196]
[1723565859740,38.8,147.3,147.22,0.12549]
[1723565859930,38.8,147.3,147.22,45.50196]
[1723565860246,38.8,147.3,147.24,0.12549]
[1723565860477,38.8,147.3,147.24,45.37647]
[1723565860738,38.8,147.3,147.25,0.12549]
[1723565860914,38.8,147.3,147.26,0.12549]
[1723565861337,38.8,147.3,147.26,0.37647]
[1723565861540,38.8,147.3,147.27,0.12549]
[1723565861726,38.8,147.3,147.27,0.37647]
[1723565862321,38.8,147.3,147.27,0.25098]
[1723565867041,38.8,147.3,147.23,20.0]
[1723565867243,38.8,147.3,147.22,20.0]
[1723565867851,38.8,147.28,147.16,258.9]
[1723565869135,38.8,147.26,147.22,0.12549]
[1723565869332,38.8,147.26,147.22,45.50196]
[1723565871647,38.8,147.28,147.22,45.50196]
[1723565872672,38.8,147.3,147.22,45.50196]
[1723565873471,38.8,147.3,147.24,0.12549]
[1723565873660,38.8,147.3,147.24,45.50196]
[1723565873842,38.8,147.32,147.26,0.12549]
[1723565874041,38.8,147.32,147.27,6.4972]
[1723565874253,38.8,147.3,147.28,45.12549]
[1723565879867,38.8,147.3,147.25,15.923]
[1723565880069,1.48140046,147.32,147.26,0.12549]
[1723565880275,38.8,147.29,147.26,0.12549]
[1723565880587,38.8,147.35,147.26,0.12549]
[1723565881564,38.8,147.35,147.26,0.37647]
[1723565881969,38.8,147.35,147.26,45.37647]
[1723565883490,38.8,147.29,147.26,45.37647]
[1723565883675,38.8,147.29,147.26,0.37647]
[1723565883885,38.8,147.27,147.25,15.923]
[1723565884860,38.8,147.27,147.21,16.2305]
[1723565885206,38.8,147.22,147.19,6.5042]
[1723565885513,38.8,147.2,147.19,6.5042]
[1723565885852,1.48140046,147.26,147.19,6.5042]
[1723565886090,38.8,147.21,147.17,16.2305]
[1723565886297,38.8,147.19,147.17,16.2305]
[1723565886822,38.8,147.21,147.17,16.2305]
[1723565887336,38.8,147.21,147.15,6.5042]
[1723565887690,38.8,147.23,147.15,6.5042]
[1723565888089,38.8,147.23,147.16,20.0]
[1723565888609,38.8,147.23,147.17,45.50196]
[1723565888812,38.8,147.23,147.18,20.0]
[1723565889319,38.8,147.21,147.17,0.12549]
[1723565889889,38.8,147.19,147.17,0.12549]
[1723565890106,38.8,147.19,147.16,0.12549]
[1723565890303,38.8,147.21,147.16,0.12549]
[1723565890502,38.8,147.25,147.16,1.48301546]
[1723565890717,6.6197,147.31,147.17,16.35599]
[1723565890718,38.8,147.27,147.17,16.35599]
[1723565890895,38.8,147.27,147.18,45.12549]
[1723565891096,38.8,147.27,147.19,0.12549]
[1723565891402,38.8,147.29,147.21,0.12549]
[1723565891722,38.8,147.29,147.21,65.50196]
[1723565892725,38.8,147.27,147.21,65.50196]
[1723565892928,38.8,147.25,147.21,65.25098]
[1723565893304,38.8,147.28,147.21,65.25098]
[1723565894224,38.8,147.3,147.23,0.12549]
[1723565894441,38.8,147.3,147.23,65.37647]
[1723565894602,38.8,147.3,147.24,0.12549]
[1723565894801,38.8,147.3,147.25,0.12549]
[1723565895121,38.8,147.3,147.25,0.37647]
[1723565895325,38.8,147.32,147.26,0.12549]
[1723565895534,38.8,147.32,147.27,6.6386]
[1723565895821,38.8,147.32,147.28,0.25098]
[1723565902814,38.8,147.32,147.29,0.12549]
[1723565903047,38.8,147.32,147.29,1.51633755]
[1723565903240,38.8,147.32,147.3,0.12549]
[1723565903546,38.8,147.32,147.3,0.25098]
[1723565906319,38.8,147.32,147.3,45.25098]
[1723565906841,38.8,147.32,147.3,0.25098]
[1723565907346,38.8,147.32,147.27,6.6386]
[1723565907516,38.8,147.3,147.27,6.6386]
[1723565908822,38.8,147.3,147.28,0.12549]
[1723565909950,38.8,147.3,147.28,45.37647]
[1723565910436,38.8,147.3,147.28,0.12549]
[1723565910843,38.8,147.3,147.28,0.37647]
[1723565911220,38.8,147.3,147.25,15.4504]
[1723565911426,38.8,147.28,147.25,15.4504]
[1723565911627,38.8,147.26,147.23,6.1704]
[1723565912032,38.8,147.28,147.23,6.1704]
[1723565912234,38.8,147.3,147.23,6.1704]
[1723565912923,38.8,147.3,147.24,0.12549]
[1723565913120,38.8,147.3,147.24,0.37647]
[1723565913332,38.8,147.3,147.25,0.12549]
[1723565913637,38.8,147.3,147.26,0.12549]
[1723565913948,38.8,147.3,147.26,0.37647]
[1723565914152,38.8,147.3,147.27,0.12549]
[1723565914326,38.8,147.3,147.27,0.37647]
[1723565916028,31.03,147.3,147.27,0.37647]
[1723565917858,31.03,147.28,147.27,0.37647]
[1723565918366,31.03,147.3,147.27,0.50196]
[1723565918529,31.03,147.32,147.28,0.12549]
[1723565918859,31.03,147.32,147.29,15.3903]
[1723565919063,31.03,147.32,147.3,45.25098]
[1723565919745,31.03,147.32,147.3,0.37647]
[1723565919960,31.03,147.32,147.3,0.25098]
[1723565920244,31.03,147.32,147.3,45.25098]
[1723565920573,31.03,147.32,147.31,0.12549]
[1723565924334,31.03,147.34,147.31,0.12549]
[1723565924855,31.03,147.32,147.31,0.12549]
[1723565925960,31.03,147.32,147.31,0.25098]
[1723565926145,31.03,147.34,147.31,0.50196]
[1723565926339,31.03,147.34,147.32,0.25098]
[1723565926741,31.03,147.34,147.33,0.12549]
[1723565930038,31.03,147.34,147.32,0.25098]
[1723565930238,31.03,147.34,147.31,0.12549]
[1723565930474,31.03,147.32,147.31,0.12549]
[1723565931645,31.03,147.32,147.31,0.37647]
[1723565932141,31.03,147.32,147.31,0.12549]
[1723565932341,30.53,147.32,147.31,0.12549]
[1723565932849,31.03,147.34,147.31,0.25098]
[1723565933770,31.03,147.36,147.32,0.25098]
[1723565933973,31.03,147.36,147.32,15.68248]
[1723565934139,31.03,147.36,147.34,0.12549]
[1723565934339,31.03,147.36,147.34,0.25098]
[1723565934571,31.03,147.36,147.35,0.25098]
[1723565934865,0.8207651,147.37,147.36,0.12549]
[1723565935050,0.8207651,147.37,147.36,0.25098]
[1723565935261,0.8207651,147.37,147.36,6.93616]
[1723565935444,0.8207651,147.37,147.36,71.93616]
[1723565936137,31.03,147.43,147.36,71.93616]
[1723565936369,31.03,147.43,147.38,0.12549]
[1723565936670,31.03,147.41,147.38,0.12549]
[1723565936974,31.03,147.41,147.38,0.25098]
[1723565937266,31.03,147.41,147.39,0.25098]
[1723565937441,31.03,147.41,147.4,0.12549]
[1723565937855,31.03,147.41,147.39,0.25098]
[1723565938053,31.03,147.41,147.38,0.37647]
[1723565938242,31.03,147.39,147.38,0.12549]
[1723565938562,31.03,147.39,147.33,6.6134]
[1723565938756,31.03,147.39,147.34,20.0]
[1723565939074,31.03,147.42,147.33,6.6134]
[1723565939244,31.03,147.35,147.29,23.0073]
[1723565939447,31.03,147.33,147.29,23.0073]
[1723565939843,38.77,147.33,147.29,23.0073]
[1723565940245,38.77,147.33,147.25,23.0073]
[1723565940456,38.77,147.31,147.25,23.0073]
[1723565940855,38.77,147.33,147.25,23.0073]
[1723565941975,38.77,147.35,147.25,23.0073]
[1723565942292,38.77,147.35,147.26,0.12549]
[1723565942450,38.27,147.35,147.26,0.12549]
[1723565942985,38.77,147.37,147.26,45.37647]
[1723565943275,38.77,147.37,147.27,21.60802285]
[1723565943454,38.77,147.37,147.29,0.12549]
[1723565943653,38.77,147.39,147.32,0.12549]
[1723565943975,38.77,147.39,147.32,65.50196]
[1723565944548,38.77,147.41,147.32,65.50196]
[1723565944968,38.77,147.41,147.32,66.335538]
[1723565945182,38.77,147.41,147.33,6.235]
[1723565945478,38.77,147.43,147.34,66.80956938]
[1723565945861,38.77,147.43,147.34,65.50196]
[1723565946057,38.77,147.43,147.34,66.57355363]
[1723565946380,38.77,147.47,147.34,66.57355363]
[1723565946579,38.77,147.45,147.34,65.50196]
[1723565948551,38.77,147.45,147.34,66.23413067]
[1723565948863,38.77,147.45,147.34,65.50196]
[1723565949775,38.77,147.47,147.37,0.12549]
[1723565949986,38.77,147.47,147.37,65.50196]
[1723565950156,38.77,147.45,147.37,65.50196]
[1723565952777,38.77,147.47,147.37,65.50196]
[1723565954665,38.77,147.49,147.37,65.50196]
[1723565954982,38.77,147.47,147.37,65.25098]
[1723565955579,38.77,147.49,147.37,65.25098]
[1723565955580,38.77,147.49,147.37,85.25098]
[1723565956285,38.77,147.49,147.38,21.87178]
[1723565956462,38.77,147.49,147.4,0.12549]
[1723565956660,38.77,147.49,147.4,0.25098]
[1723565956893,38.77,147.49,147.42,0.12549]
[1723565957059,38.77,147.49,147.42,0.25098]
[1723565957389,38.77,147.49,147.44,0.12549]
[1723565957759,38.77,147.49,147.44,0.25098]
[1723565958263,38.77,147.49,147.46,0.12549]
[1723565958683,38.77,147.49,147.46,0.25098]
[1723565958886,38.77,147.49,147.47,0.12549]
[1723565959090,6.7809,147.48,147.38,21.6208]
[1723565959298,38.77,147.43,147.38,21.6208]
[1723565959457,38.77,147.41,147.34,21.7681]
[1723565959661,38.77,147.39,147.34,21.7681]
[1723565959886,31.0,147.37,147.34,21.7681]
[1723565961290,31.0,147.39,147.34,21.7681]
[1723565961593,31.0,147.37,147.34,21.7681]
[1723565961891,38.75,147.37,147.34,6.6105]
[1723565962070,38.75,147.42,147.3,21.3996]
[1723565962071,38.75,147.35,147.3,21.3996]
[1723565963175,38.75,147.35,147.32,0.12549]
[1723565963686,38.75,147.37,147.32,0.12549]
[1723565963871,38.75,147.39,147.32,0.12549]
[1723565964061,38.75,147.41,147.32,0.12549]
[1723565964267,38.75,147.41,147.32,45.25098]
[1723565964578,38.75,147.39,147.34,0.12549]
[1723565964777,38.75,147.39,147.34,45.50196]
[1723565965371,38.75,147.42,147.34,45.50196]
[1723565966072,38.75,147.37,147.33,20.0]
[1723565966271,38.75,147.37,147.3,21.3996]
[1723565966479,38.75,147.37,147.31,20.0]
[1723565967386,38.75,147.39,147.31,20.0]
[1723565967679,38.75,147.39,147.33,0.12549]
[1723565967887,38.75,147.34,147.3,6.6118]
[1723565968483,38.75,147.38,147.3,6.6118]
[1723565969261,38.75,147.38,147.32,0.12549]
[1723565969487,38.75,147.4,147.32,0.37647]
[1723565969694,38.75,147.4,147.33,0.12549]
[1723565970003,23.1241,147.43,147.31,20.0]
[1723565970004,38.75,147.38,147.31,20.0]
[1723565970882,38.75,147.36,147.31,20.0]
[1723565971202,38.75,147.36,147.32,20.0]
[1723565971388,38.75,147.36,147.31,20.0]
[1723565971766,38.75,147.36,147.3,6.6118]
[1723565972865,38.75,147.34,147.25,29.76661981]
[1723565973126,38.75,147.32,147.26,20.0]
[1723565974181,38.75,147.32,147.25,22.6697]
[1723565974383,38.75,147.3,147.25,22.6697]
[1723565975170,38.75,147.28,147.21,22.6577]
[1723565976581,38.75,147.3,147.23,0.12549]
[1723565976777,38.75,147.32,147.23,45.37647]
[1723565976978,38.75,147.3,147.24,20.12549]
[1723565977182,38.75,147.3,147.25,45.25098]
[1723565977691,38.75,147.3,147.26,0.12549]
[1723565979085,38.75,147.3,147.25,45.25098]
[1723565979278,38.75,147.28,147.25,0.25098]
[1723565980690,45.5367,147.35,147.26,0.12549]
[1723565980691,38.75,147.3,147.26,0.12549]
[1723565981181,38.75,147.3,147.25,0.25098]
[1723565981585,38.75,147.3,147.26,0.12549]
[1723565987519,38.75,147.28,147.25,0.12549]
[1723565987722,38.75,147.26,147.22,20.0]
[1723565988185,38.75,147.24,147.21,22.6577]
[1723565988387,38.75,147.24,147.14,22.2919]
[1723565988585,38.75,147.24,147.15,7.10211517]
[1723565988895,38.75,147.26,147.15,8.30085077]
[1723565989093,38.75,147.26,147.15,7.10211517]
[1723565989291,38.75,147.24,147.15,7.10211517]
[1723565989693,38.75,147.24,147.16,0.12549]
[1723565989984,38.75,147.26,147.16,0.25098]
[1723565990199,38.75,147.26,147.18,0.12549]
[1723565990403,38.75,147.26,147.18,0.25098]
[1723565990618,38.75,147.26,147.2,0.12549]
[1723565990910,38.75,147.26,147.2,22.2919]
[1723565991290,38.75,147.26,147.21,0.12549]
[1723565991694,38.75,147.28,147.21,0.12549]
[1723565991695,38.75,147.24,147.21,0.12549]
[1723565992296,38.75,147.24,147.2,22.2919]
[1723565992496,38.75,147.24,147.2,16.1368]
[1723565992697,38.75,147.24,147.17,21.2605]
[1723565993007,38.75,147.26,147.18,20.0]
[1723565993519,38.75,147.26,147.19,0.12549]
[1723565993710,38.75,147.26,147.19,0.50196]
[1723565993895,38.75,147.28,147.19,45.50196]
[1723565994091,38.75,147.28,147.21,0.12549]
[1723565994323,38.75,147.28,147.21,45.50196]
[1723565994490,38.75,147.28,147.23,0.12549]
[1723565994700,38.75,147.28,147.23,0.37647]
[1723565995026,38.75,147.28,147.23,45.37647]
[1723565995321,38.75,147.28,147.24,0.12549]
[1723565995525,38.75,147.28,147.24,0.50196]
[1723565996713,38.75,147.3,147.24,0.37647]
[1723565997033,38.75,147.28,147.24,0.37647]
[1723565997631,38.75,147.28,147.25,0.12549]
[1723565997929,38.75,147.3,147.25,0.50196]
[1723565998438,38.75,147.3,147.25,45.50196]
[1723565998612,38.75,147.3,147.25,45.37647]
[1723565998923,38.75,147.3,147.26,0.12549]
[1723565999132,38.75,147.3,147.26,0.50196]
[1723566002028,38.75,147.35,147.26,0.50196]
[1723566002201,38.75,147.35,147.26,20.50196]
[1723566002526,38.75,147.35,147.28,0.12549]
[1723566002741,38.75,147.35,147.28,20.50196]
[1723566002906,38.75,147.35,147.3,0.12549]
[1723566003106,38.75,147.35,147.3,0.50196]
[1723566003626,15.4233,147.41,147.3,7.09626]
[1723566003807,38.75,147.4,147.32,0.12549]
[1723566004000,38.75,147.4,147.32,20.50196]
[1723566004236,38.75,147.4,147.34,0.12549]
[1723566004409,22.2049,147.46,147.34,21.76314525]
[1723566004410,38.75,147.42,147.34,21.76314525]
[1723566004733,38.75,147.38,147.34,0.50196]
[1723566005033,38.75,147.36,147.31,15.2578]
[1723566005240,38.75,147.34,147.31,15.2578]
[1723566005599,1.48140046,147.41,147.32,20.0]
[1723566005600,38.75,147.38,147.32,20.0]
[1723566006030,38.75,147.4,147.32,20.0]
[1723566006256,38.75,147.4,147.33,0.12549]
[1723566006531,38.75,147.4,147.33,45.50196]
[1723566006731,38.75,147.4,147.35,0.12549]
[1723566006898,38.75,147.4,147.35,45.50196]
[1723566007806,38.75,147.42,147.35,45.50196]
[1723566008235,38.75,147.42,147.3,6.5943]